fUST/lending_fUST_20251012
["ID","MTS","AMOUNT","RATE_DAILY","PERIOD"]
[390907394,1760209841041,-212.694,0.00024781,8]
[390907395,1760209841050,-840.34,0.00024799,9]
[390907396,1760209841059,-840.34,0.00024799,9]
[390907397,1760209841067,-840.34,0.00024799,9]
[390907398,1760209841076,-840.34,0.00024799,9]
[390907399,1760209841085,-840.44416753,0.00024799,9]
[390907400,1760209841096,-152.66745275,0.00024799,2]
[390907401,1760209841106,-317.0463614,0.00024799,2]
[390907402,1760209841116,-151.0,0.000248,10]
[390907403,1760209841125,-151.0,0.000248,13]
[390907404,1760209841134,-150760.258565,0.000248,2]
[390907405,1760209841143,-245.0,0.00024821,2]
[390907406,1760209841152,-151.0,0.00024821,2]
[390907407,1760209841161,-500.0,0.00024821,2]
[390907408,1760209841171,-151.0,0.00024821,2]
[390907409,1760209841181,-205.80567964,0.00024821,2]
[390907410,1760209841190,-151.0,0.00024821,9]
[390907411,1760209841200,-151.0,0.00024822,9]
[390907412,1760209841209,-500.0,0.00024851,9]
[390907413,1760209841218,-168.0,0.00024856,2]
[390907414,1760209841228,-500.0,0.00024871,9]
[390907415,1760209841242,-507.55432842,0.00024873,2]
[390907416,1760209841251,-500.0,0.00024873,2]
[390907417,1760209841261,-150.0,0.00024873,2]
[390907418,1760209841270,-320.63419957,0.00024873,2]
[390907419,1760209841282,-501.07479901,0.00024873,2]
[390907420,1760209841291,-500.66067143,0.00024873,2]
[390907421,1760209841300,-150.0,0.00024873,2]
[390907422,1760209841310,-500.0,0.00024873,2]
[390907423,1760209841319,-151.0,0.00024876,2]
[390907424,1760209841329,-500.0,0.00024876,2]
[390907425,1760209841338,-213.08097716,0.00024876,2]
[390907426,1760209841348,-183.67860669,0.00024876,9]
[390907427,1760209841358,-151.0,0.00024877,9]
[390907428,1760209841367,-23193.885933,0.0002488,2]
[390907429,1760209841376,-654609.115658,0.000249,2]
[390907430,1760209841385,-306.40604759,0.00024921,2]
[390907431,1760209841400,-236.29465425,0.00024931,2]
[390907432,1760209841409,-500.0,0.00024931,2]
[390907433,1760209841419,-3083.58,0.0002495,3]
[390907434,1760209841429,-1541.8,0.0002495,3]
[390907435,1760209841438,-770.9,0.0002495,3]
[390907436,1760209841447,-385.44,0.0002495,3]
[390907437,1760209841456,-606.06,0.0002495,3]
[390907438,1760209841465,-2609.37557469,0.0002495,3]
[390907439,1760209841474,-658.64,0.0002495,3]
[390907440,1760209841484,-329.32,0.0002495,3]
[390907441,1760209841493,-721.51594785,0.00024959,2]
[390907442,1760209841503,-500.0,0.00024986,2]
[390907443,1760209841512,-500.0,0.00025041,2]
[390907444,1760209841521,-151.0,0.00025041,9]
[390907445,1760209841530,-402.0,0.00025078,2]
[390907446,1760209841540,-359.22761131,0.00025085,2]
[390907447,1760209841549,-466.0,0.00025095,2]
[390907448,1760209841560,-245.0,0.00025096,9]
[390907449,1760209841569,-154.809388,0.00025146,9]
[390907450,1760209841578,-2000.0,0.00025216,2]
[390907451,1760209841587,-943.96962992,0.00025234,2]
[390907452,1760209841597,-155.29549428,0.00025252,7]
[390907453,1760209841606,-402.0,0.00025278,2]
[390907454,1760209841616,-168.0,0.00025283,2]
[390907455,1760209841626,-152.198179,0.00025294,9]
[390907456,1760209841635,-154.809388,0.00025294,9]
[390907457,1760209841644,-2505.15323595,0.00025312,2]
[390907458,1760209841654,-250.0,0.00025321,2]
[390907459,1760209841663,-1000.0,0.00025321,2]
[390907460,1760209841673,-1000.0,0.00025321,2]
[390907461,1760209841682,-402.0,0.00025357,2]
[390907462,1760209841692,-300.0,0.00025421,2]
[390907463,1760209841701,-187.54162087,0.00025421,2]
[390907464,1760209841710,-1002.45008947,0.00025421,2]
[390907465,1760209841719,-402.0,0.00025447,2]
[390907466,1760209841730,-338.10322493,0.00025521,2]
[390907467,1760209841740,-1680.0,0.00025581,2]
[390907468,1760209841749,-501.34363723,0.00025583,2]
[390907469,1760209841759,-200.0,0.00025592,2]
[390907470,1760209841768,-420.0,0.00025592,2]
[390907471,1760209841778,-420.0,0.00025592,2]
[390907472,1760209841787,-240.0,0.00025592,2]
[390907473,1760209841797,-402.0,0.00025621,2]
[390907474,1760209841806,-402.0,0.00025653,2]
[390907475,1760209841816,-402.0,0.00025677,2]
[390907476,1760209841825,-1102.97,0.0002568,2]
[390907477,1760209841835,-168.0,0.00025699,2]
[390907478,1760209841844,-1680.0,0.0002571,2]
[390907479,1760209841853,-11596.9429665,0.00025754,2]
[390907480,1760209841862,-2500.0,0.00025764,2]
[390907481,1760209841871,-168.14177406,0.00025772,9]
[390907482,1760209841880,-402.0,0.00025777,2]
[390907483,1760209841890,-152.198179,0.00025784,3]
[390907484,1760209841899,-154.809388,0.00025784,3]
[390907485,1760209841908,-402.0,0.00025842,2]
[390907486,1760209841918,-350.0,0.00025868,2]
[390907487,1760209841927,-1500.0,0.00025868,2]
[390907488,1760209841936,-1500.0,0.00025868,2]
[390907489,1760209841945,-358.36898031,0.00025918,2]
[390907490,1760209841956,-450.0,0.00025968,2]
[390907491,1760209841965,-1491.01,0.00026027,2]
[390907492,1760209841974,-402.0,0.00026033,2]
[390907493,1760209841985,-152.198179,0.00026045,3]
[390907494,1760209841994,-154.809388,0.00026045,3]
[390907495,1760209842003,-369.80040227,0.00026121,2]
[390907496,1760209842012,-168.0,0.00026239,2]
[390907497,1760209842021,-402.0,0.00026291,2]
[390907498,1760209842031,-300.0,0.000263,2]
[390907499,1760209842040,-2999.9357,0.00026312,2]
[390907500,1760209842049,-2609.37557469,0.00026378,2]
[390907501,1760209842058,-450.0,0.00026416,2]
[390907502,1760209842067,-2000.0,0.00026416,2]
[390907503,1760209842077,-2000.0,0.00026416,2]
[390907504,1760209842086,-402.0,0.00026433,2]
[390907505,1760209842095,-402.0,0.00026446,2]
[390907506,1760209842104,-720.0,0.00026467,30]
[390907507,1760209842113,-402.0,0.0002647,2]
[390907508,1760209842121,-981.732,0.00026478,2]
[390907509,1760209842131,-2403.0,0.00026496,2]
[390907510,1760209842140,-160.0,0.000265,2]
[390907511,1760209842149,-580.48260469,0.000265,2]
[390907512,1760209842158,-172.65316788,0.000265,2]
[390907513,1760209842167,-1058.32870369,0.000265,2]
[390907514,1760209842176,-298.08050243,0.00026512,2]
[390907515,1760209842185,-160.0,0.00026512,2]
[390907516,1760209842194,-600.0,0.00026516,2]
[390907517,1760209842203,-402.0,0.00026528,2]
[390907518,1760209842212,-2159.0,0.00026615,2]
[390907519,1760209842221,-402.0,0.00026644,7]
[390907520,1760209842231,-630.0,0.00026674,2]
[390907521,1760209842245,-1000.488837,0.00026676,2]
[390907522,1760209842254,-401.4975796,0.00026721,2]
[390907523,1760209842263,-402.0,0.00026723,2]
[390907524,1760209842271,-2403.0,0.00026729,7]
[390907525,1760209842281,-153.0,0.00026746,2]
[390907526,1760209842289,-153.0,0.00026746,2]
[390907527,1760209842298,-153.0,0.00026746,2]
[390907528,1760209842307,-153.0,0.00026746,2]
[390907529,1760209842316,-153.0,0.00026746,2]
[390907530,1760209842324,-4196.0,0.00026783,2]
[390907531,1760209842334,-402.0,0.00026786,2]
[390907532,1760209842342,-150.0,0.0002679,2]
[390907533,1760209842351,-580.48260469,0.000268,2]
[390907534,1760209842361,-172.65316788,0.000268,2]
[390907535,1760209842370,-1058.32870369,0.000268,2]
[390907536,1760209842378,-1748.60605962,0.00026813,2]
[390907537,1760209842387,-300.0,0.000269,2]
[390907538,1760209842396,-150.0,0.00026914,2]
[390907539,1760209842404,-550.0,0.00026964,2]
[390907540,1760209842413,-1005.68056906,0.00026964,2]
[390907541,1760209842422,-2500.0,0.00026964,2]
[390907542,1760209842431,-1000.0,0.00026989,5]
[390907543,1760209842439,-298.08050243,0.00027,3]
[390907544,1760209842448,-580.48260469,0.00027,2]
[390907545,1760209842457,-172.65316788,0.00027,2]
[390907546,1760209842466,-1058.32870369,0.00027,2]
[390907547,1760209842475,-827.0321429,0.00027064,2]
[390907548,1760209842484,-11596.9429665,0.00027113,2]
[390907549,1760209842493,-1000.0,0.00027123,10]
[390907550,1760209842502,-1000.0,0.00027123,10]
[390907551,1760209842609,-1000.0,0.00027123,10]
[390907552,1760209842618,-1000.0,0.00027123,10]
[390907553,1760209842627,-1000.0,0.00027123,10]
[390907554,1760209842635,-1000.0,0.00027123,10]
[390907555,1760209842644,-1000.0,0.00027123,10]
[390907556,1760209842653,-1000.0,0.00027123,10]
[390907557,1760209842661,-1000.0,0.00027123,10]
[390907558,1760209842670,-1000.0,0.00027123,10]
[390907559,1760209842679,-1000.0,0.00027123,10]
[390907560,1760209842688,-1000.0,0.00027123,10]
[390907561,1760209842696,-1000.0,0.00027123,10]
[390907562,1760209842705,-1000.0,0.00027123,10]
[390907563,1760209842714,-1000.0,0.00027123,10]
[390907564,1760209842723,-1000.0,0.00027123,10]
[390907565,1760209842732,-1000.0,0.00027123,10]
[390907566,1760209842741,-1000.0,0.00027123,10]
[390907567,1760209842750,-1000.0,0.00027123,10]
[390907568,1760209842759,-1000.0,0.00027123,10]
[390907569,1760209842768,-1000.0,0.00027123,10]
[390907570,1760209842776,-1000.0,0.00027123,10]
[390907571,1760209842785,-1000.0,0.00027123,10]
[390907572,1760209842794,-466.16538687,0.00027123,10]
[390907573,1760209842803,-502.26458203,0.00027131,2]
[390907574,1760209842811,-500.0,0.00027131,2]
[390907575,1760209842820,-2609.37557469,0.000272,10]
[390907576,1760209842829,-3000.0,0.000273,2]
[390907577,1760209842838,-580.48260469,0.000273,2]
[390907578,1760209842847,-172.65316788,0.000273,2]
[390907579,1760209842855,-1058.32870369,0.000273,2]
[390907580,1760209842864,-3000.0,0.0002731,2]
[390907581,1760209842873,-3000.0,0.0002732,2]
[390907582,1760209842882,-433.19475694,0.00027321,2]
[390907583,1760209842891,-3000.0,0.0002733,2]
[390907584,1760209842899,-3000.0,0.0002734,2]
[390907585,1760209842908,-3000.0,0.0002735,2]
[390907586,1760209842917,-3000.0,0.0002736,2]
[390907587,1760209842928,-11596.9429665,0.0002736,2]
[390907588,1760209842937,-3000.0,0.0002737,2]
[390907589,1760209842947,-3000.0,0.0002738,2]
[390907590,1760209842957,-3000.0,0.0002739,2]
[390907591,1760209842966,-1323.57,0.00027392,2]
[390907592,1760209842974,-1000.0,0.00027397,30]
[390907593,1760209842984,-1000.0,0.00027397,30]
[390907594,1760209842993,-1000.0,0.00027397,30]
[390907595,1760209843002,-1000.0,0.00027397,30]
[390907596,1760209843010,-1000.0,0.00027397,30]
[390907597,1760209843019,-1135.99673508,0.00027397,30]
[390907598,1760209843028,-1491.01,0.00027397,4]
[390907599,1760209843037,-300.0,0.00027397,30]
[390907600,1760209843045,-300.0,0.00027397,30]
[390907601,1760209843054,-300.0,0.00027397,30]
[390907602,1760209843063,-300.0,0.00027397,30]
[390907603,1760209843071,-300.0,0.00027397,30]
[390907604,1760209843080,-300.0,0.00027397,30]
[390907605,1760209843089,-300.0,0.00027397,30]
[390907606,1760209843098,-300.0,0.00027397,30]
[390907607,1760209843107,-300.0,0.00027397,30]
[390907608,1760209843116,-300.0,0.00027397,30]
[390907609,1760209843126,-300.0,0.00027397,30]
[390907610,1760209843135,-300.0,0.00027397,30]
[390907611,1760209843145,-300.0,0.00027397,30]
[390907612,1760209843154,-300.0,0.00027397,30]
[390907613,1760209843164,-300.0,0.00027397,30]
[390907614,1760209843173,-300.0,0.00027397,30]
[390907615,1760209843182,-300.0,0.00027397,30]
[390907616,1760209843191,-300.0,0.00027397,30]
[390907617,1760209843200,-300.0,0.00027397,30]
[390907618,1760209843209,-300.0,0.00027397,30]
[390907619,1760209843219,-300.0,0.00027397,30]
[390907620,1760209843229,-300.0,0.00027397,30]
[390907621,1760209843243,-300.0,0.00027397,30]
[390907622,1760209843252,-200.461075,0.00027397,30]
[390907623,1760209843262,-3000.0,0.000274,2]
[390907624,1760209843271,-3787.94,0.000274,2]
[390907625,1760209843280,-7522.16,0.000274,2]
[390907626,1760209843289,-2609.37557469,0.000274,30]
[390907627,1760209843298,-3000.0,0.0002741,2]
[390907628,1760209843308,-3000.0,0.0002742,2]
[390907629,1760209843318,-11596.9429665,0.0002742,2]
[390907630,1760209843327,-3000.0,0.0002743,2]
[390907631,1760209843337,-3000.0,0.0002744,2]
[390907632,1760209843346,-3000.0,0.0002745,2]
[390907633,1760209843355,-3000.0,0.0002746,2]
[390907634,1760209843364,-3000.0,0.0002747,2]
[390907635,1760209843375,-150.0,0.00027473,5]
[390907636,1760209843384,-161.52818085,0.00027473,5]
[390907638,1760209843393,-3000.0,0.0002748,2]
[390907639,1760209843402,-3000.0,0.0002749,2]
[390907640,1760209843411,-151.87,0.00027499,15]
[390907641,1760209843421,-3000.0,0.000275,2]
[390907642,1760209843430,-3000.0,0.0002751,2]
[390907643,1760209843439,-650.0,0.00027512,5]
[390907644,1760209843448,-3000.0,0.00027512,5]
[390907645,1760209843457,-3000.0,0.0002752,2]
[390907646,1760209843466,-3000.0,0.0002753,2]
[390907648,1760209843475,-3000.0,0.0002754,2]
[390907649,1760209843486,-3000.0,0.0002755,2]
[390907650,1760209843495,-3000.0,0.0002756,2]
[390907651,1760209843504,-3000.0,0.0002757,2]
[390907652,1760209843513,-3000.0,0.0002758,2]
[390907653,1760209843522,-3000.0,0.0002759,2]
[390907654,1760209843531,-151.87,0.00027599,15]
[390907655,1760209843541,-5292.911547,0.000276,2]
[390907656,1760209843550,-580.48260469,0.000276,2]
[390907657,1760209843559,-1058.32870369,0.000276,2]
[390907658,1760209843568,-500.0,0.00027679,5]
[390907659,1760209843577,-151.87,0.00027699,15]
[390907660,1760209843586,-250.63212,0.000277,120]
[390907661,1760209843595,-1758.0,0.00027753,2]
[390907662,1760209843604,-587.0,0.00027765,2]
[390907663,1760209843613,-151.87,0.00027799,15]
[390907664,1760209843623,-197.0,0.0002786,19]
[390907665,1760209843632,-151.87,0.00027899,15]
[390907666,1760209843642,-1058.32870369,0.000279,2]
[390907667,1760209843652,-464.89193428,0.00027921,2]
[390907668,1760209843661,-151.87,0.00027999,15]
[390907669,1760209843671,-250.0,0.00028021,5]
[390907670,1760209843680,-2351.0,0.00028021,2]
[390907671,1760209843689,-750.0,0.0002806,5]
[390907672,1760209843698,-3500.0,0.0002806,5]
[390907673,1760209843707,-152.198179,0.00028096,20]
[390907674,1760209843716,-154.809388,0.00028096,20]
[390907675,1760209843725,-151.87,0.00028099,15]
[390907676,1760209843735,-1058.32870369,0.000281,2]
[390907677,1760209843744,-151.87,0.00028199,15]
[390907678,1760209843753,-151.87,0.00028299,15]
[390907679,1760209843762,-151.87,0.00028399,15]
[390907680,1760209843771,-1058.32870369,0.000284,2]
[390907681,1760209843780,-152.198179,0.00028494,20]
[390907682,1760209843789,-154.809388,0.00028494,20]
[390907683,1760209843798,-151.87,0.00028499,15]
[390907684,1760209843807,-496.58911162,0.00028521,2]
[390907685,1760209843817,-350.0,0.00028568,5]
[390907686,1760209843826,-151.87,0.00028599,15]
[390907687,1760209843835,-850.0,0.00028608,5]
[390907688,1760209843844,-4000.0,0.00028608,5]
[390907689,1760209843853,-151.87,0.00028699,15]
[390907690,1760209843862,-7522.16,0.000287,2]
[390907691,1760209843871,-1058.32870369,0.000287,2]
[390907692,1760209843883,-162.8757457,0.00028746,30]
[390907693,1760209843895,-297.8851395,0.00028746,30]
[390907694,1760209843907,-189.7226975,0.00028746,30]
[390907695,1760209843920,-588.4106815,0.00028746,30]
[390907696,1760209843932,-153.0,0.00028746,30]
[390907697,1760209843943,-162.8757457,0.00028746,30]
[390907698,1760209843953,-297.8851395,0.00028746,30]
[390907699,1760209843964,-189.7226975,0.00028746,30]
[390907700,1760209843974,-153.0,0.00028746,30]
[390907701,1760209843987,-588.4106815,0.00028746,30]
[390907702,1760209843999,-297.8851395,0.00028746,30]
[390907703,1760209844010,-297.8851395,0.00028746,30]
[390907704,1760209844021,-588.4106815,0.00028746,30]
[390907705,1760209844032,-297.8851395,0.00028746,30]
[390907706,1760209844043,-588.4106815,0.00028746,30]
[390907707,1760209844055,-1491.01,0.00028767,6]
[390907708,1760209844067,-170.16703498,0.00028774,120]
[390907709,1760209844077,-151.87,0.00028799,15]
[390907710,1760209844089,-3787.94,0.000288,2]
[390907711,1760209844100,-151.87,0.00028899,15]
[390907712,1760209844111,-151.87,0.00028999,15]
[390907713,1760209844123,-1058.32870369,0.00029,2]
[390907714,1760209844134,-151.87,0.00029099,15]
[390907715,1760209844145,-1544.16,0.00029104,2]
[390907716,1760209844156,-864.0,0.00029114,30]
[390907717,1760209844167,-470.11389129,0.00029116,5]
[390907718,1760209844180,-528.28628895,0.00029121,2]
[390907719,1760209844190,-950.0,0.00029156,5]
[390907720,1760209844201,-3513.85770469,0.00029156,5]
[390907721,1760209844211,-151.87,0.00029199,15]
[390907722,1760209844223,-151.87,0.00029299,15]
[390907723,1760209844240,-655.71645154,0.00029329,2]
[390907724,1760209844251,-151.93098415,0.00029399,15]
[390907725,1760209844262,-980.0,0.00029478,2]
[390907726,1760209844271,-379.2109898,0.00029568,30]
[390907727,1760209844282,-297.8851395,0.00029568,30]
[390907728,1760209844292,-153.0,0.00029568,30]
[390907729,1760209844302,-588.4106815,0.00029568,30]
[390907730,1760209844313,-297.8851395,0.00029568,30]
[390907731,1760209844322,-588.4106815,0.00029568,30]
[390907732,1760209844333,-297.8851395,0.00029568,30]
[390907733,1760209844344,-189.7226975,0.00029568,30]
[390907734,1760209844354,-153.0,0.00029568,30]
[390907735,1760209844365,-588.4106815,0.00029568,30]
[390907736,1760209844375,-301.5627812,0.00029568,30]
[390907737,1760209844386,-1080.4762559,0.00029568,30]
[390907738,1760209844397,-381.1435306,0.00029568,30]
[390907739,1760209844409,-153.0,0.00029568,30]
[390907740,1760209844419,-1175.8300242,0.00029568,30]
[390907741,1760209844430,-153.0,0.00029568,30]
[390907742,1760209844442,-153.0,0.00029568,30]
[390907743,1760209844454,-2159.0,0.00029615,2]
[390907744,1760209844467,-630.0,0.00029674,2]
[390907745,1760209844479,-1050.0,0.00029704,5]
[390907746,1760209844492,-559.98346629,0.00029721,2]
[390907747,1760209844503,-197.0,0.0002975,24]
[390907748,1760209844513,-150.0,0.0002979,2]
[390907749,1760209844523,-150.0,0.00029875,30]
[390907750,1760209844532,-1358.6803716,0.00029968,2]
[390907751,1760209844543,-154.809388,0.00030016,2]
[390907752,1760209844554,-588.4106815,0.00030055,30]
[390907753,1760209844564,-302.51602579,0.00030074,24]
[390907754,1760209844574,-823.0,0.00030122,2]
[390907755,1760209844586,-1748.60605962,0.00030125,2]
[390907756,1760209844597,-217.71,0.00030136,120]
[390907757,1760209844610,-1491.01,0.00030136,8]
[390907758,1760209844621,-1400.0,0.00030136,7]
[390907759,1760209844632,-250.0,0.000302,10]
[390907760,1760209844643,-151.0,0.00030213,30]
[390907761,1760209844652,-10000.0,0.00030221,2]
[390907762,1760209844662,-7290.0,0.00030221,2]
[390907763,1760209844673,-186.446428,0.00030221,30]
[390907764,1760209844685,-151.0,0.00030221,30]
[390907765,1760209844695,-151.0,0.00030221,30]
[390907766,1760209844707,-151.0,0.00030221,30]
[390907767,1760209844719,-193.901579,0.00030225,30]
[390907768,1760209844729,-193.901579,0.00030225,30]
[390907769,1760209844739,-193.901579,0.00030225,30]
[390907770,1760209844750,-193.901579,0.00030225,30]
[390907771,1760209844760,-193.901579,0.00030225,30]
[390907772,1760209844770,-193.901579,0.00030225,30]
[390907773,1760209844780,-193.901579,0.00030225,30]
[390907774,1760209844790,-193.901579,0.00030225,30]
[390907775,1760209844800,-151.0,0.00030225,30]
[390907776,1760209844811,-151.0,0.00030225,30]
[390907777,1760209844821,-151.0,0.00030225,30]
[390907778,1760209844831,-151.0,0.00030225,30]
[390907779,1760209844841,-105204.60103936,0.00030225,7]
[390907780,1760209844851,-150.0,0.00030225,2]
[390907781,1760209844861,-91379.92878483,0.00030225,2]
[390907782,1760209844871,-225.64669928,0.00030225,15]
[390907783,1760209844882,-300.0,0.00030225,2]
[390907784,1760209844893,-3886.18743866,0.00030225,2]
[390907785,1760209844904,-810.81339319,0.00030225,2]
[390907786,1760209844916,-258.55525668,0.00030225,2]
[390907787,1760209844927,-240.4597466,0.00030225,10]
[390907788,1760209844938,-297.28479008,0.00030225,2]
[390907789,1760209844948,-50010.84860944,0.00030225,5]
[390907790,1760209844958,-327.45706987,0.00030225,2]
[390907791,1760209844968,-292.24761959,0.00030225,2]
[390907792,1760209844978,-194.87567149,0.00030225,12]
[390907793,1760209844988,-638.11049295,0.00030225,2]
[390907794,1760209844999,-1363.69842866,0.00030225,2]
[390907795,1760209845009,-156.83351984,0.00030225,2]
[390907796,1760209845021,-6301.29202423,0.00030225,2]
[390907797,1760209845031,-1095.84666558,0.00030225,10]
[390907798,1760209845043,-157.83419757,0.00030225,2]
[390907799,1760209845053,-8667.76722455,0.00030225,2]
[390907800,1760209845063,-3740.28664698,0.00030225,7]
[390907801,1760209845073,-1719.20816001,0.00030225,2]
[390907802,1760209845083,-3587.999999,0.00030225,7]
[390907803,1760209845093,-2078.97304031,0.00030225,2]
[390907804,1760209845103,-429.16435768,0.00030225,7]
[390907805,1760209845114,-1500.0,0.00030225,3]
[390907806,1760209845124,-200.0,0.00030225,10]
[390907807,1760209845136,-10590.79276867,0.00030225,7]
[390907808,1760209845148,-508.24618066,0.00030225,2]
[390907809,1760209845158,-1002.02249188,0.00030225,2]
[390907810,1760209845167,-468.46283752,0.00030225,2]
[390907811,1760209845178,-179.53231605,0.00030225,2]
[390907812,1760209845190,-498.0,0.00030225,7]
[390907813,1760209845201,-909.9648072,0.00030225,14]
[390907814,1760209845214,-30482.30003228,0.00030225,2]
[390907815,1760209845225,-189.41571748,0.00030225,2]
[390907816,1760209845241,-1398.74796368,0.00030225,2]
[390907817,1760209845251,-5903.3103795,0.00030225,2]
[390907818,1760209845262,-10694.86721083,0.00030225,2]
[390907819,1760209845271,-652.03904262,0.00030225,2]
[390907820,1760209845282,-1541.04435632,0.00030225,14]
[390907821,1760209845294,-2920.0,0.00030225,2]
[390907822,1760209845304,-154.3487781,0.00030225,7]
[390907823,1760209845318,-813.13950623,0.00030225,15]
[390907824,1760209845328,-1444.53304621,0.00030225,2]
[390907825,1760209845338,-385.35044903,0.00030225,2]
[390907826,1760209845349,-201.60726783,0.00030225,2]
[390907827,1760209845360,-1521.08806413,0.00030225,15]
[390907828,1760209845370,-3151.02793611,0.00030225,2]
[390907829,1760209845380,-365.10385937,0.00030225,2]
[390907830,1760209845530,-166.78596952,0.00030225,2]
[390907831,1760209845546,-100370.42113177,0.00030225,2]
[390907832,1760209845555,-2516.98535222,0.00030225,7]
[390907833,1760209845564,-150.53534174,0.00030225,2]
[390907834,1760209845574,-176.51046614,0.00030225,7]
[390907835,1760209845583,-258.87111469,0.00030225,2]
[390907836,1760209845592,-3770.52951071,0.00030225,2]
[390907837,1760209845601,-158.0,0.00030225,10]
[390907838,1760209845611,-8168.08318115,0.00030225,2]
[390907839,1760209845621,-26000.79999935,0.00030225,6]
[390907840,1760209845630,-52315.454374,0.00030225,7]
[390907841,1760209845640,-10467.49218952,0.00030225,2]
[390907842,1760209845648,-309.57331385,0.00030225,2]
[390907843,1760209845657,-20000.0,0.00030225,30]
[390907844,1760209845666,-250.0,0.00030225,10]
[390907845,1760209845675,-250.0,0.00030225,10]
[390907846,1760209845684,-250.0,0.00030225,10]
[390907847,1760209845693,-497.912122,0.00030225,10]
[390907848,1760209845703,-3760.0,0.00030237,60]
[390907849,1760209845712,-175.0,0.00030237,7]
[390907850,1760209845721,-175.0,0.00030237,7]
[390907851,1760209845731,-175.0,0.00030237,7]
[390907852,1760209845740,-175.09993288,0.00030237,7]
[390907853,1760209845749,-157.0,0.00030237,7]
[390907854,1760209845759,-157.0,0.00030237,7]
[390907855,1760209845768,-157.0,0.00030237,7]
[390907856,1760209845777,-157.0,0.00030237,7]
[390907857,1760209845787,-157.0,0.00030237,7]
[390907858,1760209845795,-157.0,0.00030237,7]
[390907859,1760209845805,-160.05791752,0.00030237,7]
[390907860,1760209845814,-329.0,0.00030237,7]
[390907861,1760209845824,-329.0,0.00030237,7]
[390907862,1760209845833,-329.0,0.00030237,7]
[390907863,1760209845843,-329.0,0.00030237,7]
[390907864,1760209845854,-329.0,0.00030237,7]
[390907865,1760209845864,-329.0,0.00030237,7]
[390907866,1760209845874,-329.0,0.00030237,7]
[390907867,1760209845883,-329.0,0.00030237,7]
[390907868,1760209845892,-329.0,0.00030237,7]
[390907869,1760209845902,-329.0,0.00030237,7]
[390907870,1760209845911,-329.0,0.00030237,7]
[390907871,1760209845921,-329.0,0.00030237,7]
[390907872,1760209845930,-329.0,0.00030237,7]
[390907873,1760209845939,-329.0,0.00030237,7]
[390907874,1760209845949,-329.0,0.00030237,7]
[390907875,1760209845958,-329.0,0.00030237,7]
[390907876,1760209845968,-329.0,0.00030237,7]
[390907877,1760209845978,-329.0,0.00030237,7]
[390907878,1760209845989,-329.0,0.00030237,7]
[390907879,1760209845999,-329.0,0.00030237,7]
[390907880,1760209846009,-329.0,0.00030237,7]
[390907881,1760209846018,-329.0,0.00030237,7]
[390907883,1760209846028,-329.0,0.00030237,7]
[390907884,1760209846037,-329.0,0.00030237,7]
[390907885,1760209846047,-329.0,0.00030237,7]
[390907886,1760209846057,-334.41020079,0.00030237,7]
[390907887,1760209846067,-151.0,0.00030238,30]
[390907888,1760209846076,-150.67,0.00030238,60]
[390907889,1760209846086,-983.10368179,0.00030252,5]
[390907891,1760209846095,-150.0,0.00030273,5]
[390907893,1760209846104,-217.71,0.00030273,120]
[390907895,1760209846113,-298.08050243,0.000303,30]
[390907897,1760209846123,-7522.16,0.000303,2]
[390907899,1760209846132,-250.0,0.000303,10]
[390907900,1760209846141,-591.68064363,0.00030321,2]
[390907902,1760209846150,-184.78247473,0.0003034,2]